bitfinex-derivatives/quotes_ETHF0:USTF0_20260118
["timestamp","ask_amount","ask_price","bid_price","bid_amount"]
[1768695149228,1.00758356,3316.1,3314.9,0.9714488]
[1768695149531,1.26127268,3316.4,3314.9,0.9714488]
[1768695149731,1.27408712,3316.3,3315.1,0.9714488]
[1768695149930,1.26127268,3316.4,3315.1,0.9714488]
[1768695150130,1.00755608,3316.3,3315.1,0.9714488]
[1768695150336,1.26127268,3316.4,3315.1,0.9714488]
[1768695150535,1.00747583,3316.3,3315.1,0.9714488]
[1768695150735,1.11046268,3316.4,3315.1,0.9714488]
[1768695150940,1.00747584,3316.3,3315.1,0.9714488]
[1768695151138,1.11046268,3316.4,3315.1,0.9714488]
[1768695151340,1.00747584,3316.3,3315.1,0.9714488]
[1768695151531,1.11046268,3316.4,3315.1,0.9714488]
[1768695151732,1.00750853,3316.3,3315.1,0.9714488]
[1768695151933,1.11046268,3316.4,3315.1,0.9714488]
[1768695152133,1.00750853,3316.3,3315.1,0.9714488]
[1768695152336,1.11046268,3316.4,3315.1,0.9714488]
[1768695152534,1.27406786,3316.3,3315.1,0.9714488]
[1768695152742,1.11046268,3316.4,3315.1,0.9714488]
[1768695152941,1.27406812,3316.3,3315.1,0.9714488]
[1768695153248,0.13901388,3316.4,3315.1,0.9714488]
[1768695153448,1.2741709,3316.3,3315.1,0.9714488]
[1768695153635,0.13901388,3316.4,3315.1,0.9714488]
[1768695153840,1.27561579,3316.3,3315.1,0.9714488]
[1768695154043,0.13901388,3316.4,3315.1,0.9714488]
[1768695154244,1.27561579,3316.3,3315.1,0.9714488]
[1768695154546,0.13901388,3316.4,3315.1,0.9714488]
[1768695154744,1.27565848,3316.3,3315.1,0.9714488]
[1768695154943,0.13901388,3316.4,3315.1,0.9714488]
[1768695155142,1.27565848,3316.3,3315.1,0.9714488]
[1768695155345,0.13901388,3316.4,3315.1,0.9714488]
[1768695155647,1.27559563,3316.3,3315.1,0.9714488]
[1768695155846,0.13901388,3316.4,3315.1,0.9714488]
[1768695156044,1.27559563,3316.3,3315.1,0.9714488]
[1768695156351,0.13901388,3316.4,3315.1,0.9714488]
[1768695156551,1.00903359,3316.3,3314.7,0.13097226]
[1768695156742,0.13901388,3316.4,3315.1,0.9714488]
[1768695156941,1.00903359,3316.3,3315.1,0.9714488]
[1768695157143,0.13901388,3316.4,3315.1,0.9714488]
[1768695157345,1.00903045,3316.3,3315.1,0.9714488]
[1768695157547,0.13901388,3316.4,3315.1,0.9714488]
[1768695157742,1.00898323,3316.3,3315.1,0.9714488]
[1768695157945,0.13901388,3316.4,3315.1,0.9714488]
[1768695158153,1.00898323,3316.3,3315.1,0.9714488]
[1768695158345,0.13901388,3316.4,3315.1,0.9714488]
[1768695158538,1.00894483,3316.3,3315.1,0.9714488]
[1768695158743,0.13901388,3316.4,3315.1,0.9714488]
[1768695159748,1.1037482,3316.3,3314.9,0.9714488]
[1768695167856,0.1322994,3316.3,3314.9,0.9714488]
[1768695168060,0.1322994,3316.3,3315.0,0.9714488]
[1768695174569,0.9714488,3316.1,3314.7,0.13097226]
[1768695175064,0.9714488,3316.1,3314.8,0.9714488]
[1768695178268,0.9714488,3316.1,3314.7,0.13097226]
[1768695178570,0.9714488,3316.1,3314.3,1.11004048]
[1768695178571,0.9714488,3315.8,3314.3,1.11004048]
[1768695179166,0.9714488,3315.8,3314.4,0.13859168]
[1768695179568,0.9714488,3315.5,3314.0,0.9714488]
[1768695179775,0.9714488,3315.5,3314.2,0.9714488]
[1768695181969,1.10399775,3315.5,3314.0,1.11004048]
[1768695182664,0.9714488,3315.3,3314.0,0.13859168]
[1768695182862,0.9714488,3315.3,3313.8,0.00236886]
[1768695182863,0.9714488,3315.1,3313.8,0.97381766]
[1768695186277,0.9714488,3315.1,3313.8,0.00236886]
[1768695186579,1.10399775,3315.1,3313.8,0.00236886]
[1768695192688,0.13254895,3315.1,3313.8,0.00236886]
[1768695192886,0.9714488,3315.0,3313.8,0.00236886]
[1768695195284,0.13254895,3315.1,3313.8,0.00236886]
[1768695215008,1.68,3315.2,3313.8,1.10773601]
[1768695216014,1.68,3315.2,3313.8,0.13571096]
[1768695216408,1.81034645,3315.2,3313.8,0.13571096]
[1768695216610,0.13034645,3315.1,3313.8,0.00236886]
[1768695223419,0.13034645,3314.9,3313.8,0.00236886]
[1768695254543,1.681,3315.1,3313.8,0.00236886]
[1768695254842,1.27975196,3315.0,3313.8,0.00236886]
[1768695255040,0.2676439,3314.9,3313.8,0.00236886]
[1768695255243,1.681,3315.1,3313.8,0.00236886]
[1768695255438,1.681,3315.1,3313.8,0.97429411]
[1768695255439,1.27987495,3315.0,3313.8,0.97429411]
[1768695255639,0.26766957,3314.9,3313.8,0.97429411]
[1768695255847,1.81816375,3315.1,3313.8,0.97429411]
[1768695256035,1.27987513,3315.0,3313.8,0.97429411]
[1768695256240,0.26766962,3314.9,3313.8,0.97429411]
[1768695256437,1.81816375,3315.1,3313.8,0.97429411]
[1768695256736,1.27987345,3315.0,3313.8,0.97429411]
[1768695257034,0.26766915,3314.9,3313.8,0.97429411]
[1768695257237,1.81816375,3315.1,3313.8,0.97429411]
[1768695257429,1.27987425,3315.0,3313.8,0.97429411]
[1768695257646,0.13716375,3315.5,3314.5,0.97192525]
[1768695257935,1.41694585,3315.4,3314.2,0.97192525]
[1768695258133,0.26764438,3315.3,3314.2,0.97192525]
[1768695258333,0.13716375,3315.4,3314.2,0.97192525]
[1768695264948,0.97192525,3315.2,3313.8,0.00236886]
[1768695265154,0.97192525,3315.2,3313.8,0.97429411]
[1768695265943,1.10500101,3315.2,3313.8,0.00236886]
[1768695266138,0.97192525,3315.0,3313.8,0.00236886]
[1768695270254,1.10500101,3315.2,3313.8,0.00236886]
[1768695273356,0.13307576,3315.1,3313.8,0.00236886]
[1768695278856,1.1096684,3314.8,3313.8,0.00236886]
[1768695279255,0.13774315,3314.7,3313.8,0.00236886]
[1768695285080,1.1096684,3314.6,3313.8,0.00236886]
[1768695285278,0.97192525,3314.4,3313.8,0.00236886]
[1768695285477,0.97192525,3314.4,3312.9,0.97192525]
[1768695286383,0.97493688,3314.4,3313.1,0.97192525]
[1768695287687,0.00301163,3314.4,3313.1,0.97192525]
[1768695287888,0.00301163,3314.4,3313.3,0.97192525]
[1768695290886,0.00301163,3314.4,3313.7,0.97192525]
[1768695294993,0.00301163,3314.4,3313.4,0.13458302]
[1768695295193,0.00301163,3314.4,3313.6,0.97192525]
[1768695298889,0.00301163,3314.4,3313.8,0.97192525]
[1768695299085,4.699,3315.2,3314.0,0.97192525]
[1768695299382,1.27111745,3315.1,3314.0,0.97192525]
[1768695299583,0.26512228,3315.0,3314.0,0.97192525]
[1768695299783,4.699,3315.2,3314.0,0.97192525]
[1768695299986,1.27114169,3315.1,3314.0,0.97192525]
[1768695300187,0.26512228,3315.0,3314.0,0.97192525]
[1768695300393,4.70253162,3315.2,3314.0,0.97192525]
[1768695300591,1.27117224,3315.1,3314.0,0.97192525]
[1768695300791,0.26512837,3315.0,3314.0,0.97192525]
[1768695300993,4.70253162,3315.2,3314.0,0.97192525]
[1768695301195,1.27117224,3315.1,3314.0,0.97192525]
[1768695301382,0.26512837,3315.0,3314.0,0.97192525]
[1768695301582,4.70253162,3315.2,3314.0,0.97192525]
[1768695301784,1.27122513,3315.1,3314.0,0.97192525]
[1768695301985,0.26513898,3315.0,3314.0,0.97192525]
[1768695302185,4.70253162,3315.2,3314.0,0.97192525]
[1768695302484,1.27129431,3315.1,3314.0,0.97192525]
[1768695302689,0.26515297,3315.0,3314.0,0.97192525]
[1768695302880,0.00353162,3315.2,3314.0,0.97192525]
[1768695303081,1.2712938,3315.1,3314.2,0.97192525]
[1768695303386,1.68453162,3315.2,3314.2,0.97192525]
[1768695303586,0.26516104,3315.1,3314.2,0.97192525]
[1768695303787,1.68453162,3315.2,3314.0,0.97192525]
[1768695303993,0.265161,3315.1,3314.0,0.97192525]
[1768695304193,0.26518422,3315.0,3314.0,0.97192525]
[1768695304395,1.68453162,3315.2,3314.0,0.97192525]
[1768695304690,1.27360957,3315.1,3314.0,0.97192525]
[1768695304887,1.68453162,3315.2,3314.0,0.97192525]
[1768695305081,1.00842535,3315.1,3314.0,0.97192525]
[1768695305284,1.68453162,3315.2,3314.0,0.97192525]
[1768695305486,1.00853097,3315.1,3314.0,0.97192525]
[1768695305685,1.68453162,3315.2,3314.0,0.97192525]
[1768695305889,1.00853106,3315.1,3314.0,0.97192525]
[1768695306191,1.68453162,3315.2,3314.0,0.97192525]
[1768695306393,1.00865251,3315.1,3314.0,0.97192525]
[1768695306587,1.68453162,3315.2,3314.0,0.97192525]
[1768695306789,1.00865019,3315.1,3314.0,0.97192525]
[1768695306978,1.68453162,3315.2,3314.0,0.97192525]
[1768695307182,1.00865019,3315.1,3314.0,0.97192525]
[1768695307492,0.26526272,3315.0,3314.2,0.97192525]
[1768695307690,1.68453162,3315.2,3314.2,0.97192525]
[1768695307891,0.26525772,3315.1,3314.2,0.97192525]
[1768695308196,0.00353162,3315.2,3314.2,0.97192525]
[1768695308391,0.26529903,3315.1,3314.2,0.97192525]
[1768695308698,0.00353162,3315.2,3314.4,0.97192525]
[1768695313803,0.00353162,3315.2,3314.0,0.13458302]
[1768695314101,0.00353162,3315.2,3314.4,0.97192525]
[1768695314996,0.00353162,3315.2,3314.6,0.97192525]
[1768695315793,1.636,3315.8,3314.6,0.97192525]
[1768695315994,0.26721214,3315.7,3314.6,0.97192525]
[1768695316302,1.636,3315.8,3314.6,0.97192525]
[1768695316803,1.6381711,3315.8,3314.6,0.97192525]
[1768695317500,1.6381711,3315.8,3314.3,0.13458302]
[1768695320205,0.0021711,3315.8,3314.3,0.13458302]
[1768695340132,0.0021711,3315.8,3314.5,0.14008872]
[1768695361351,0.1508,3316.8,3315.2,1.11125322]
[1768695361656,0.13389879,3316.6,3314.7,0.13978961]
[1768695361853,0.13389879,3316.3,3314.7,0.13978961]
[1768695362154,0.26748219,3316.2,3314.7,0.13978961]
[1768695362356,0.13389879,3316.3,3314.7,0.13978961]
[1768695362542,0.26744634,3316.2,3314.7,0.13978961]
[1768695362741,0.13639961,3316.3,3314.7,0.13978961]
[1768695362955,0.26744669,3316.2,3314.7,0.13978961]
[1768695363156,0.13639961,3316.3,3314.7,0.13978961]
[1768695363454,0.26742148,3316.2,3314.7,0.13978961]
[1768695363654,0.13639961,3316.3,3314.7,0.13978961]
[1768695363856,0.26742155,3316.2,3314.7,0.13978961]
[1768695364056,0.13639961,3316.3,3314.7,0.13978961]
[1768695364247,0.26742155,3316.2,3314.7,0.13978961]
[1768695364444,0.26742155,3316.2,3314.4,0.97146361]
[1768695364445,0.13639961,3316.3,3314.3,0.13978961]
[1768695364651,0.13389879,3316.1,3314.3,0.13978961]
[1768695372151,0.13389879,3315.9,3314.3,0.13978961]
[1768695372463,0.13389879,3315.7,3314.3,0.13978961]
[1768695373360,0.13389879,3315.7,3313.6,0.13978961]
[1768695377265,0.97174267,3315.5,3314.1,0.97174267]
[1768695378260,0.13389879,3315.7,3314.1,0.97174267]
[1768695378460,0.97174267,3315.5,3314.1,0.97174267]
[1768695379465,0.97174267,3315.5,3314.1,1.11153228]
[1768695379671,0.13389879,3315.7,3314.3,1.11153228]
[1768695379973,0.13389879,3315.7,3314.4,0.97174267]
[1768695380469,0.97174267,3315.6,3314.3,0.13978961]
[1768695383268,0.13389879,3315.7,3314.3,0.13978961]
[1768695383473,0.15084,3315.9,3314.8,0.97174267]
[1768695383675,0.15084,3315.9,3314.6,0.97174267]
[1768695387182,0.15084,3315.9,3314.6,1.11493988]
[1768695387982,0.97174267,3316.0,3314.6,1.11493988]
[1768695388187,0.13181699,3316.1,3314.6,1.11493988]
[1768695388393,0.26723661,3316.0,3314.6,1.11493988]
[1768695388580,0.13181699,3316.1,3314.6,1.11493988]
[1768695388782,0.26723647,3316.0,3314.6,1.11493988]
[1768695388982,0.13181699,3316.1,3314.6,1.11493988]
[1768695389183,0.26723647,3316.0,3314.7,0.14319721]
[1768695389379,0.13181699,3316.1,3314.7,0.14319721]
[1768695389574,0.00250082,3316.3,3314.9,0.14319721]
[1768695389788,0.26723506,3316.2,3314.9,0.14319721]
[1768695390093,0.00250082,3316.3,3315.0,0.97174267]
[1768695390484,0.00250082,3316.3,3314.9,0.14319721]
[1768695390787,0.00250082,3316.3,3315.0,0.97174267]
[1768695391279,0.00250082,3316.3,3315.0,1.11493988]
[1768695391475,0.00250082,3316.3,3315.3,0.14319721]
[1768695391682,0.00250082,3316.3,3315.8,0.97174267]
[1768695392279,3.018,3316.8,3315.8,0.97174267]
[1768695392480,3.018,3316.8,3315.6,1.11493988]
[1768695393188,3.02142528,3316.8,3315.6,1.11493988]
[1768695400886,3.02142528,3316.8,3315.6,0.14319721]
[1768695401086,3.02142528,3316.8,3315.6,1.11493988]
[1768695402494,0.00342528,3316.8,3315.6,1.11493988]
[1768695407003,0.97516795,3316.8,3315.6,1.11493988]
[1768695407394,0.00342528,3316.8,3315.6,1.11493988]
[1768695409908,0.00342528,3316.8,3315.6,0.14319721]
[1768695413816,0.97174267,3316.7,3315.6,0.14319721]
[1768695415913,0.97174267,3316.7,3315.3,0.9744129]
[1768695416114,0.97174267,3316.7,3315.3,1.1055849]
[1768695416718,0.14060015,3316.8,3315.3,0.13384223]
[1768695417020,0.97174267,3316.4,3315.3,0.00267023]
[1768695420524,0.13717487,3316.5,3315.3,0.00267023]
[1768695421320,0.13717487,3316.5,3315.3,0.9744129]
[1768695423222,0.00342528,3316.8,3315.3,1.1055849]
[1768695423413,0.00342528,3316.8,3315.6,0.97174267]
[1768695425116,0.00342528,3316.8,3315.6,1.10291467]
[1768695433436,0.00342528,3316.8,3315.6,0.131172]
[1768695433624,0.00342528,3316.8,3315.6,1.10291467]
[1768695436327,0.00342528,3316.8,3315.7,0.131172]
[1768695445440,0.00342528,3316.8,3315.3,0.14514877]
[1768695467065,0.13899564,3316.8,3315.3,0.14514877]
[1768695475970,0.00342528,3316.8,3315.3,0.14514877]
[1768695480474,1.26149892,3316.8,3315.3,0.14514877]
[1768695480669,0.97088187,3316.4,3315.3,0.00267023]
[1768695480972,0.97088187,3316.4,3314.9,0.13812445]
[1768695481778,0.97088187,3316.4,3314.9,0.14163918]
[1768695488373,0.13639177,3316.3,3314.9,0.14163918]
[1768695489180,0.13639177,3316.3,3314.9,0.00351473]
[1768695490181,0.97088187,3316.0,3314.9,0.00351473]
[1768695490374,1.10727364,3316.0,3314.5,0.13812445]
[1768695491073,0.13639177,3315.9,3314.5,0.13812445]
[1768695491375,0.13639177,3315.9,3314.5,0.1413685]
[1768695494075,0.13639177,3315.9,3314.5,0.00324405]
[1768695497285,0.97163814,3315.7,3314.5,0.00324405]
[1768695501286,0.97163814,3315.5,3314.5,0.00324405]
[1768695504190,0.97163814,3315.3,3313.9,0.97163814]
[1768695505187,0.97163814,3315.3,3313.9,0.9749296]
[1768695506891,0.13639177,3315.6,3313.9,0.9749296]
[1768695507090,0.97163814,3315.4,3313.9,0.9749296]
[1768695507290,0.97163814,3315.2,3313.9,0.00329146]
[1768695508191,0.13642817,3316.5,3314.1,0.14346371]
[1768695508387,0.15083,3316.1,3314.9,0.97163814]
[1768695508586,1.68,3316.1,3314.9,0.97163814]
[1768695508788,0.13642817,3316.3,3314.9,0.97163814]
[1768695509092,1.681,3316.2,3314.9,0.97163814]
[1768695509484,1.681,3316.2,3314.7,0.14346371]
[1768695509686,1.681,3316.2,3315.1,0.97163814]
[1768695513196,1.68,3316.1,3315.1,0.97163814]
[1768695513697,1.81642817,3316.1,3314.0,0.97163814]
[1768695513903,0.97163814,3315.5,3314.1,0.14346371]
[1768695515199,0.97163814,3315.5,3314.1,1.11510185]
[1768695526316,1.11122749,3315.5,3314.1,1.11510185]
[1768695526597,1.11122749,3315.5,3314.1,0.97163814]
[1768695531005,1.11122749,3315.5,3314.2,0.97163814]
[1768695532602,0.13958935,3315.5,3314.2,0.97163814]
[1768695537707,0.13958935,3315.5,3313.9,0.14637117]
[1768695537916,0.13958935,3315.5,3314.3,0.97163814]
[1768695541202,0.97163814,3315.7,3314.3,0.97163814]
[1768695542913,1.68,3315.6,3314.3,0.97163814]
[1768695543409,0.97163814,3315.7,3314.3,0.97163814]
[1768695543611,1.68,3315.6,3314.3,0.97163814]
[1768695544307,1.68,3315.6,3314.2,0.14330655]
[1768695544511,1.68,3315.6,3314.4,0.97163814]
[1768695546199,0.14110325,3315.9,3314.4,0.97163814]
[1768695546407,0.2676748,3315.8,3314.8,0.97163814]
[1768695546599,0.2676748,3315.7,3314.8,0.97163814]
[1768695546807,1.68,3316.1,3315.0,0.97163814]
[1768695547509,1.68,3316.1,3314.6,0.14330655]
[1768695547815,1.68,3316.1,3314.9,0.97163814]
[1768695550416,1.68,3316.1,3315.0,0.97163814]
[1768695553619,0.97163814,3316.5,3315.2,0.97163814]
[1768695553822,2.95472614,3316.4,3315.2,0.97163814]
[1768695554012,0.26727278,3316.3,3315.2,0.97163814]
[1768695554215,1.68,3316.4,3315.2,0.97163814]
[1768695554417,0.26724415,3316.3,3315.2,0.97163814]
[1768695554616,1.68,3316.4,3315.2,0.97163814]
[1768695554818,0.26724413,3316.3,3315.2,0.97163814]
[1768695555019,1.68,3316.4,3315.2,0.97163814]
[1768695555218,0.26724419,3316.3,3315.2,0.97163814]
[1768695555410,1.68,3316.4,3315.2,0.97163814]
[1768695555610,0.26722269,3316.3,3315.2,0.97163814]
[1768695555810,1.68,3316.4,3314.9,0.14330655]
[1768695556024,0.26722265,3316.3,3315.1,0.97163814]
[1768695556323,1.68,3316.4,3315.1,0.97163814]
[1768695556618,0.26720506,3316.3,3315.1,0.97163814]
[1768695556918,1.68,3316.4,3315.1,0.97163814]
[1768695557120,0.26720506,3316.3,3315.1,0.97163814]
[1768695557321,1.68,3316.4,3315.1,0.97163814]
[1768695557524,1.23882914,3316.3,3315.1,0.97163814]
[1768695557734,1.11274139,3316.3,3314.9,1.11494469]
[1768695559524,0.14110325,3316.3,3314.9,0.14330655]
[1768695566327,4.698,3316.4,3315.2,1.10413559]
[1768695566531,4.698,3316.4,3315.3,0.13280326]
[1768695568429,0.00342528,3316.8,3315.3,0.13280326]
[1768695568629,4.698,3316.7,3315.3,0.13280326]
[1768695574433,3.018,3316.6,3315.3,0.13280326]
[1768695577031,0.13454405,3316.8,3315.3,0.13280326]
[1768695577223,4.698,3316.7,3315.3,0.13280326]
[1768695578532,0.13454405,3316.8,3315.3,0.13280326]
[1768695578735,4.698,3316.7,3315.3,0.13280326]
[1768695579341,0.13454405,3316.8,3315.3,0.13280326]
[1768695579527,4.698,3316.7,3315.3,0.13280326]
[1768695579926,4.698,3316.6,3315.3,0.13280326]
[1768695582443,0.00342528,3316.8,3315.3,0.13280326]
[1768695582625,1.68,3316.5,3315.3,0.13280326]
[1768695587842,1.68,3316.5,3314.8,0.15089]
[1768695587843,0.13111877,3316.4,3314.9,0.13978026]
[1768695592738,0.13111877,3316.4,3314.9,1.11111259]
[1768695596043,4.443,3316.3,3314.9,1.11111259]
[1768695600150,1.68,3316.2,3314.9,1.11111259]
[1768695601853,0.13111877,3316.4,3314.9,1.11111259]
[1768695602052,0.884,3316.3,3314.9,1.11111259]
[1768695602353,0.13656531,3316.2,3314.8,0.15089]
[1768695602549,0.13656531,3316.2,3314.6,0.97133233]
[1768695606859,0.13656531,3316.2,3314.4,0.97133233]
[1768695611654,0.13656531,3316.2,3314.2,0.13367922]
[1768695616564,0.67138531,3316.3,3314.2,0.13367922]
[1768695616764,0.27263015,3316.2,3314.2,0.13367922]
[1768695616963,0.15082,3316.3,3315.2,0.97133233]
[1768695617159,4.698,3316.1,3314.9,0.13367922]
[1768695617558,0.15082,3316.3,3314.9,0.13367922]
[1768695617859,4.381,3316.2,3314.9,0.13367922]
[1768695619664,0.15082,3316.3,3314.9,0.13367922]
[1768695619866,4.552,3316.2,3314.9,0.13367922]
[1768695621263,4.552,3316.2,3315.0,0.97128103]
[1768695622371,4.552,3316.2,3314.4,0.13993469]
[1768695622566,5.66525197,3316.2,3314.8,0.97128103]
[1768695622767,0.14197094,3316.1,3314.8,0.97128103]
[1768695623173,0.14197094,3316.1,3314.4,0.13993469]
[1768695623370,0.14197094,3316.1,3314.7,0.97128103]
[1768695629779,0.14197094,3316.1,3314.4,0.13993469]
[1768695629982,0.14197094,3316.1,3314.7,0.97128103]
[1768695631582,0.14197094,3316.1,3314.4,0.13993469]
[1768695631777,0.97128103,3315.8,3314.5,0.97128103]
[1768695633278,0.97128103,3315.8,3314.5,1.11121572]
[1768695634481,0.14197094,3316.1,3314.5,1.11121572]
[1768695634671,3.018,3315.7,3314.5,1.11121572]
[1768695646990,3.018,3315.7,3314.0,0.13806102]
[1768695647398,3.018,3315.7,3314.4,0.97128103]
[1768695652102,3.018,3315.7,3314.4,1.11342495]
[1768695652701,3.018,3315.7,3314.4,0.14214392]
[1768695652905,3.018,3315.7,3314.4,1.11342495]
[1768695659617,0.14197094,3316.1,3314.4,1.11342495]
[1768695659905,0.97128103,3315.8,3314.4,1.11342495]
[1768695660207,3.664,3315.7,3314.4,1.11342495]
[1768695660608,0.97128103,3315.6,3314.4,0.14214392]
[1768695665316,0.97128103,3315.6,3314.1,0.97128103]
[1768695665705,0.97128103,3315.6,3314.1,1.11342495]
[1768695667717,0.97128103,3315.6,3314.2,0.14214392]
[1768695669515,3.664,3315.7,3314.2,0.14214392]
[1768695669714,3.664,3315.7,3313.9,0.00329146]
[1768695669715,0.97128103,3314.9,3313.9,0.00329146]
[1768695671412,1.285,3314.8,3313.9,0.00329146]
[1768695687329,4.304,3314.8,3313.9,0.00329146]
[1768695687828,4.304,3314.8,3313.1,0.13581261]
[1768695688829,4.304,3314.8,3313.1,0.13870038]
[1768695689925,5.41830465,3314.8,3313.1,0.13870038]
[1768695690122,0.14228079,3314.7,3313.1,0.13870038]
[1768695690422,1.48627026,3314.6,3313.1,0.13870038]
[1768695690726,0.14228079,3314.6,3313.1,0.13870038]
[1768695691725,1.06660234,3314.5,3313.1,0.13870038]
[1768695691927,1.06661982,3314.4,3313.1,0.00288777]
[1768695692127,0.00343364,3314.4,3313.1,0.00288777]
[1768695692620,0.14228079,3314.3,3313.1,0.00288777]
[1768695692931,0.14228079,3314.2,3313.1,0.00288777]
[1768695695436,0.14228079,3314.2,3312.3,0.13581261]
[1768695696427,0.14228079,3314.2,3312.3,0.13904674]
[1768695698234,4.7,3314.1,3312.3,0.13904674]
[1768695706440,4.701,3314.0,3312.4,0.12946233]
[1768695706943,4.701,3313.9,3312.4,0.12946233]
[1768695712442,0.15434364,3314.4,3312.8,0.14316887]
[1768695712638,3.02,3313.9,3312.8,0.14316887]
[1768695714047,3.02,3313.9,3312.4,0.14316887]
[1768695714648,3.15530352,3313.9,3312.3,0.00323413]
[1768695715742,0.13530352,3313.8,3312.3,0.00323413]
[1768695718040,4.701,3313.7,3312.3,0.146403]
[1768695718440,4.701,3313.6,3312.3,0.146403]
[1768695721357,1.681,3313.5,3312.3,0.146403]
[1768695722356,0.28622352,3314.1,3312.3,0.146403]
[1768695722556,4.91644717,3314.0,3312.4,0.14316887]
[1768695722855,6.03844717,3313.9,3312.4,0.14316887]
[1768695723055,0.27766014,3313.8,3312.4,0.14316887]
[1768695723243,4.701,3313.9,3312.4,0.14316887]
[1768695723558,0.27767844,3313.8,3312.4,0.14316887]
[1768695723851,4.701,3313.7,3312.4,0.14316887]
[1768695724053,1.681,3313.7,3312.7,1.11519273]
[1768695724550,0.15092,3314.1,3312.7,1.11519273]
[1768695724853,3.92168835,3314.0,3312.8,0.14316887]
[1768695725054,3.644,3314.0,3312.8,0.14316887]
[1768695725254,0.15092,3314.1,3312.8,0.14316887]
[1768695725457,4.50968985,3314.0,3312.8,0.14316887]
[1768695725755,4.232,3314.0,3312.8,0.14316887]
[1768695726152,0.15092,3314.1,3312.8,0.14316887]
[1768695726455,4.97867246,3314.0,3312.8,0.14316887]
[1768695726648,4.701,3314.0,3312.8,0.14316887]
[1768695728857,0.15092,3314.1,3312.8,0.14316887]
[1768695729048,4.36165077,3314.0,3312.8,0.14316887]
[1768695729250,0.15092,3314.1,3312.8,0.14316887]
[1768695729450,1.681,3313.9,3312.8,0.14316887]
[1768695730260,0.00343364,3314.4,3312.8,0.14316887]
[1768695730462,5.61383536,3314.3,3312.8,0.14316887]
[1768695730757,0.2776138,3314.2,3312.8,0.14316887]
[1768695730960,4.279,3314.3,3312.8,0.14316887]
[1768695731151,0.27760848,3314.2,3312.8,0.14316887]
[1768695731352,4.279,3314.3,3312.8,0.14316887]
[1768695731557,0.27757209,3314.2,3312.8,0.14316887]
[1768695731854,4.279,3314.3,3312.8,0.14316887]
[1768695732052,0.27757212,3314.2,3312.8,0.14316887]
[1768695732252,4.279,3314.3,3312.8,0.14316887]
[1768695732453,0.27754387,3314.2,3312.8,0.14316887]
[1768695732651,4.279,3314.3,3312.8,0.14316887]
[1768695732861,0.27754387,3314.2,3312.8,0.14316887]
[1768695733053,4.279,3314.3,3312.8,0.14316887]
[1768695733251,0.27752271,3314.2,3312.8,0.14316887]
[1768695733451,4.279,3314.3,3312.8,0.14316887]
[1768695733661,0.27752227,3314.2,3312.8,0.14316887]
[1768695733861,4.279,3314.3,3312.8,0.14316887]
[1768695734070,0.27752227,3314.2,3312.8,0.14316887]
[1768695734263,1.681,3314.2,3312.8,0.14316887]
[1768695734564,0.00343364,3314.4,3312.8,0.14316887]
[1768695734863,4.9785056,3314.3,3312.8,0.14316887]
[1768695735063,0.2775056,3314.2,3312.8,0.14316887]
[1768695735263,4.701,3314.3,3312.8,0.14316887]
[1768695735465,0.27749146,3314.2,3312.8,0.14316887]
[1768695735650,4.701,3314.3,3312.8,0.14316887]
[1768695735961,0.27749146,3314.2,3312.8,0.14316887]
[1768695736161,4.701,3314.3,3312.8,0.14316887]
[1768695736355,0.27748045,3314.2,3312.8,0.14316887]
[1768695736556,4.701,3314.3,3312.8,0.14316887]
[1768695736756,0.27748135,3314.2,3312.8,0.14316887]
[1768695736949,4.701,3314.3,3312.8,0.14316887]
[1768695737153,0.27748135,3314.2,3312.8,0.14316887]
[1768695737350,4.701,3314.3,3312.8,0.14316887]
[1768695737555,0.27747267,3314.2,3312.8,0.14316887]
[1768695737754,4.701,3314.3,3312.8,0.14316887]
[1768695737962,0.27747267,3314.2,3312.8,0.14316887]
[1768695738161,4.701,3314.3,3312.8,0.14316887]
[1768695738351,0.27746598,3314.2,3312.8,0.14316887]
[1768695738555,4.701,3314.3,3312.8,0.14316887]
[1768695738761,0.27746462,3314.2,3312.8,0.14316887]
[1768695738963,4.701,3314.3,3312.8,0.14316887]
[1768695739158,1.681,3314.2,3313.1,0.97202386]
[1768695739363,1.681,3314.2,3312.8,0.14316887]
[1768695743266,1.681,3314.2,3313.1,0.97233503]
[1768695743663,1.681,3314.2,3312.9,0.97233503]
[1768695743871,0.97233503,3314.1,3312.7,0.97233503]
[1768695744070,0.97233503,3314.1,3312.4,0.13866226]
[1768695744071,0.97233503,3313.9,3312.4,0.13866226]
[1768695744368,0.97233503,3313.9,3312.5,0.97233503]
[1768695744776,0.13616499,3314.1,3312.9,0.97233503]
[1768695745070,4.361,3314.0,3312.9,0.97233503]
[1768695752471,1.681,3313.9,3312.9,0.97233503]
[1768695761478,1.681,3313.9,3312.4,0.13866226]
[1768695761683,1.681,3313.9,3312.9,0.97233503]
[1768695762894,1.681,3313.9,3312.4,0.13866226]
[1768695763180,1.681,3313.9,3312.9,0.97233503]
[1768695764795,1.681,3313.9,3312.7,0.97233503]
[1768695766681,2.65333503,3313.9,3312.5,0.97233503]
[1768695767499,2.65333503,3313.9,3312.7,0.97233503]
[1768695771587,1.681,3313.9,3312.7,0.97233503]
[1768695774609,1.10850002,3314.1,3312.4,0.13866226]
[1768695774610,0.13616499,3314.1,3312.9,0.97233503]
[1768695774807,1.681,3313.8,3312.9,0.97233503]
[1768695777607,0.97233503,3314.3,3312.9,0.97233503]
[1768695777805,6.03869208,3314.2,3312.9,0.97233503]
[1768695778105,0.27779465,3314.1,3312.9,0.97233503]
[1768695778404,0.27779465,3314.0,3312.9,0.97233503]
[1768695778608,4.701,3314.2,3312.9,0.97233503]
[1768695778905,0.27779428,3314.1,3312.9,0.97233503]
[1768695779103,0.27779428,3314.0,3312.9,0.97233503]
[1768695779304,4.701,3314.2,3312.9,0.97233503]
[1768695779505,0.27779397,3314.1,3312.9,0.97233503]
[1768695779705,0.27779397,3314.0,3312.9,0.97233503]
[1768695779906,4.701,3314.2,3312.9,0.97233503]
[1768695780106,0.27779397,3314.1,3312.9,0.97233503]
[1768695780308,0.27779397,3314.0,3312.9,0.97233503]
[1768695780605,4.701,3314.2,3312.9,0.97233503]
[1768695780806,0.27779372,3314.1,3312.9,0.97233503]
[1768695781000,0.27779372,3314.0,3312.9,0.97233503]
[1768695781201,4.701,3314.2,3312.9,0.97233503]
[1768695781408,0.27779358,3314.1,3312.9,0.97233503]
[1768695781707,0.27779358,3314.0,3312.9,0.97233503]
[1768695781906,5.67333503,3314.2,3312.9,0.97233503]
[1768695782108,5.67333503,3314.2,3312.4,0.13866226]
[1768695782109,0.27779338,3314.1,3312.4,0.13866226]
[1768695782306,1.25012841,3314.0,3312.4,0.13866226]
[1768695782513,0.97233503,3313.6,3312.4,0.13866226]